[Event "POL-chT 2nd League Juniors 2020"]
[Site "Sypniewo"]
[Date "2020.10.24"]
[Round "2.18"]
[White "Wieczorek, Maja"]
[Black "Tim, Anna"]
[Result "1-0"]
[ECO "C11"]
[WhiteElo "1141"]
[BlackElo "1237"]
[Annotator "NA RC"]
[PlyCount "140"]
[EventDate "2020.10.23"]
[EventType "team-tourn"]
[EventCountry "POL"]
[SourceTitle "playchess.com"]
[Source "ChessBase"]
[SourceQuality "1"]
[TimeControl "5400+30"]

1. e4 {[%emt 0:00:00]} e6 {[%emt 0:00:00]} 2. d4 {[%emt 0:00:00]} d5 {[%emt 0:00:00]} 3. Nc3 {[%emt 0:00:00]} Nf6 {[%emt 0:00:42]} 4. e5 {[%emt 0:00:02]} Nfd7 {[%emt 0:00:11]} 5. f4 {[%emt 0:00:10]} a6 {[%emt 0:01:02]} 6. Nf3 {[%emt 0:00:22]} c5 {[%emt 0:00:23]} 7. Be3 {[%emt 0:00:26]} Nc6 {[%emt 0:07:55]} 8. Bd3 {[%emt 0:01:18]} b5 {[%emt 0:02:04]} 9. a3 {[%emt 0:01:15]} Qb6 {[%emt 0:02:11]} 10. Be2 {[%emt 0:01:39]} Bb7 {[%emt 0:02:11]} 11. O-O {[%emt 0:00:56]} O-O-O {[%emt 0:05:44]} 12. Na2 {[%emt 0:02:38]} h6 {[%emt 0:05:30]} 13. c3 {[%emt 0:00:46]} Be7 {[%emt 0:00:59]} 14. b4 {[%emt 0:03:50]} c4 {[%emt 0:01:15]} 15. a4 {[%emt 0:00:34]} Rdg8 {[%emt 0:01:08]} 16. axb5 {[%emt 0:00:41]} axb5 {[%emt 0:00:40]} 17. Qd2 {[%emt 0:02:58]} Qd8 {[%emt 0:09:38]} 18. Nc1 {[%emt 0:04:41]} g5 {[%emt 0:05:36]} 19. h3 {[%emt 0:06:23]} g4 {[%emt 0:09:53]} 20. hxg4 {[%emt 0:00:16]} Rxg4 {[%emt 0:00:36]} 21. Nh2 {[%emt 0:03:38]} Rgg8 {[%emt 0:05:35]} 22. f5 {[%emt 0:00:59]} Bg5 {[%emt 0:02:51]} 23. f6 {[%emt 0:01:21]} Bxe3+ {[%emt 0:07:05]} 24. Qxe3 {[%emt 0:00:12]} Rg5 {[%emt 0:01:36]} 25. Bg4 {[%emt 0:02:48]} Qg8 {[%emt 0:03:20]} 26. Bh3 {[%emt 0:01:53]} Rg3 {[%emt 0:00:58]} 27. Rf3 {[%emt 0:00:42]} Rg5 {[%emt 0:07:00]} 28. Ne2 {[%emt 0:02:29]} Qf8 {[%emt 0:11:21]} 29. Rg3 {[%emt 0:00:51]} Rxg3 {[%emt 0:01:23]} 30. Qxg3 {[%emt 0:00:36]} Qg8 {[%emt 0:01:35]} 31. Qxg8+ {[%emt 0:00:43]} Rxg8 {[%emt 0:00:12]} 32. Bg4 {[%emt 0:00:09]} Nb6 {[%emt 0:02:29]} 33. Bh5 {[%emt 0:00:17]} Nd8 {[%emt 0:00:16]} 34. Ra5 {[%emt 0:01:07]} Bc6 {[%emt 0:00:27]} 35. Ra6 {[%emt 0:00:26]} Kb7 {[%emt 0:00:42]} 36. Ra1 {[%emt 0:00:37]} Na4 {[%emt 0:00:10]} 37. Rc1 {[%emt 0:02:18]} Rg5 {[%emt 0:01:03]} 38. Bf3 {[%emt 0:02:21]} Rg8 {[%emt 0:00:44]} 39. Ng4 {[%emt 0:00:16]} Rh8 {[%emt 0:01:48]} 40. Nf4 {[%emt 0:00:29]} Nb2 {[%emt 0:01:10]} 41. Nh2 {[%emt 0:02:45]} Na4 {[%emt 0:00:09]} 42. Bh5 {[%emt 0:00:31]} Kb8 {[%emt 0:00:32]} 43. Ne2 {[%emt 0:02:31]} Rg8 {[%emt 0:00:15]} 44. Rf1 {[%emt 0:04:10]} Rg5 {[%emt 0:00:15]} 45. Bg4 {[%emt 0:01:33]} Kb7 {[%emt 0:00:27]} 46. Rf3 {[%emt 0:00:57]} h5 {[%emt 0:01:00]} 47. Bh3 {[%emt 0:00:45]} Kc7 {[%emt 0:00:44]} 48. Rf4 {[%emt 0:00:35]} Rg8 {[%emt 0:00:44]} 49. Rh4 {[%emt 0:00:19]} Rh8 {[%emt 0:00:01]} 50. Bg4 {[%emt 0:00:40]} Be8 {[%emt 0:00:58]} 51. Rxh5 {[%emt 0:00:57]} Rxh5 {[%emt 0:00:06]} 52. Bxh5 {[%emt 0:00:09]} Kc8 {[%emt 0:00:25]} 53. Ng4 {[%emt 0:00:19]} Kc7 {[%emt 0:00:09]} 54. Nh6 {[%emt 0:00:20]} Kd7 {[%emt 0:00:22]} 55. g4 {[%emt 0:00:23]} Kc7 {[%emt 0:00:07]} 56. g5 {[%emt 0:00:10]} Kd7 {[%emt 0:00:03]} 57. Kf1 {[%emt 0:01:20]} Nb2 {[%emt 0:01:41]} 58. Ke1 {[%emt 0:00:39]} Nd3+ {[%emt 0:00:22]} 59. Kd2 {[%emt 0:00:25]} Nf2 {[%emt 0:00:22]} 60. Bf3 {[%emt 0:03:57]} Nh3 {[%emt 0:00:35]} 61. Nf4 {[%emt 0:04:21]} Nxf4 {[%emt 0:00:26]} 62. Ke3 {[%emt 0:00:24]} Nh3 {[%emt 0:00:11]} 63. Ng8 {[%emt 0:01:31]} Nxg5 {[%emt 0:00:13]} 64. Bg2 {[%emt 0:00:33]} Nc6 {[%emt 0:01:00]} 65. Kf4 {[%emt 0:00:23]} Nh7 {[%emt 0:00:47]} 66. Kg4 {[%emt 0:00:39]} Nf8 {[%emt 0:00:24]} 67. Kg5 {[%emt 0:00:33]} Ng6 {[%emt 0:00:06]} 68. Bf3 {[%emt 0:00:47]} Nd8 {[%emt 0:01:26]} 69. Bh5 {[%emt 0:00:43]} Kc7 {[%emt 0:00:37]} 70. Ne7 {[%emt 0:01:01]} Kd7 1-0

[Event "POL-chT 2nd League Juniors 2020"]
[Site "Sypniewo"]
[Date "2020.10.24"]
[Round "2.20"]
[White "Niemier, Hubert"]
[Black "Dalkowski, Rafal"]
[Result "1-0"]
[ECO "A59"]
[WhiteElo "1771"]
[BlackElo "1871"]
[Annotator "NA RC"]
[PlyCount "79"]
[EventDate "2020.10.23"]
[EventType "team-tourn"]
[EventCountry "POL"]
[SourceTitle "playchess.com"]
[Source "ChessBase"]
[SourceQuality "1"]
[TimeControl "5400+30"]

1. d4 {[%emt 0:00:00]} c5 {[%emt 0:00:00]} 2. d5 {[%emt 0:00:00]} Nf6 {[%emt 0:00:00]} 3. c4 {[%emt 0:00:00]} b5 {[%emt 0:00:00]} 4. cxb5 {[%emt 0:00:00]} a6 {[%emt 0:00:00]} 5. bxa6 {[%emt 0:00:00]} Bxa6 {[%emt 0:00:00]} 6. Nc3 {[%emt 0:00:00]} d6 {[%emt 0:00:07]} 7. e4 {[%emt 0:00:00]} Bxf1 {[%emt 0:00:09]} 8. Kxf1 {[%emt 0:00:00]} g6 {[%emt 0:00:11]} 9. Nf3 {[%emt 0:00:00]} Bg7 {[%emt 0:00:09]} 10. g3 {[%emt 0:00:00]} O-O {[%emt 0:01:14]} 11. Kg2 {[%emt 0:00:00]} Nbd7 {[%emt 0:02:27]} 12. Re1 {[%emt 0:00:05] 12.Qe2 is the modern continuation.} Qa5 {[%emt 0:02:45]} 13. Nd2 {[%emt 0:04:20]} (13. a4 $16) 13... Nb6 {[%emt 0:03:06] A59: Benko/Volga Gambit: White castles by hand.} 14. Qe2 {[%emt 0:05:28] [#]} Nfd7 $146 {[%emt 0:10:38]} ({Predecessor:} 14... Rfb8 15. a3 Nfd7 16. Nb3 Qa6 17. Qxa6 Rxa6 18. Nd2 Ne5 19. f4 Nd3 20. Re3 Nxc1 21. Rxc1 {0-1 (33) Borowicz,P (1936)-Fengier,W (2095) Koszalin 2007}) 15. Nd1 {[%emt 0:01:16]} Rfc8 {[%emt 0:07:08]} 16. Ne3 {[%emt 0:01:14]} c4 {[%emt 0:03:54]} 17. Nexc4 $2 {[%emt 0:04:09]} (17. a3 $11 {and White is okay.}) 17... Nxc4 {[%emt 0:02:01]} 18. Nxc4 {[%emt 0:00:19]} Rxc4 {[%emt 0:01:12]} 19. Qxc4 {[%emt 0:03:10]} Qxe1 {[%emt 0:00:19]} 20. a4 {[%emt 0:03:07]} Nc5 {[%emt 0:03:17]} 21. Ra2 {[%emt 0:01:04]} Qxe4+ {[%emt 0:03:38]} 22. Qxe4 {[%emt 0:00:05]} Nxe4 {[%emt 0:00:09]} 23. a5 {[%emt 0:00:06]} Kf8 {[%emt 0:37:16]} 24. Be3 {[%emt 0:07:24]} Nf6 $2 {[%emt 0:09:28]} (24... Ke8 $19 {has better winning chances.} 25. Kf3 Nf6) 25. b4 {[%emt 0:00:39]} Nxd5 {[%emt 0:00:06]} 26. b5 {[%emt 0:00:41]} Nc7 {[%emt 0:06:48]} 27. b6 {[%emt 0:00:08]} Na6 {[%emt 0:00:06]} 28. Rc2 {[%emt 0:01:50]} Ke8 {[%emt 0:02:50]} 29. b7 {[%emt 0:00:06]} Rb8 {[%emt 0:00:03]} 30. Rc6 {[%emt 0:00:19]} Rxb7 {[%emt 0:00:36]} 31. Rxa6 {[%emt 0:00:08]} Rb8 {[%emt 0:01:16]} 32. Ra7 {[%emt 0:00:18]} d5 {[%emt 0:03:12]} (32... h6 $11 {keeps the balance.}) 33. Bb6 {[%emt 0:00:47]} d4 {[%emt 0:00:47]} 34. Kf3 {[%emt 0:00:10]} e5 {[%emt 0:00:54]} 35. Ke4 {[%emt 0:01:53]} f5+ {[%emt 0:01:09]} 36. Kd5 {[%emt 0:01:35]} d3 {[%emt 0:00:34]} 37. Rxg7 {[%emt 0:00:27]} Rxb6 {[%emt 0:00:28]} 38. axb6 {[%emt 0:00:05]} d2 {[%emt 0:00:02]} 39. Ke6 {[%emt 0:00:04]} Kf8 {[%emt 0:00:06]} 40. Rd7 {[%emt 0:00:05]} 1-0

[Event "POL-chT 2nd League Juniors 2020"]
[Site "Sypniewo"]
[Date "2020.10.24"]
[Round "2.21"]
[White "Wieckowski, Michal"]
[Black "Skrzypinski, Jan"]
[Result "1/2-1/2"]
[ECO "B20"]
[WhiteElo "1494"]
[BlackElo "1418"]
[Annotator "NA RC"]
[PlyCount "84"]
[EventDate "2020.10.23"]
[EventType "team-tourn"]
[EventCountry "POL"]
[SourceTitle "playchess.com"]
[Source "ChessBase"]
[SourceQuality "1"]
[TimeControl "5400+30"]

1. e4 {[%emt 0:00:00]} c5 {[%emt 0:00:00]} 2. b3 {[%emt 0:00:00]} Nc6 {[%emt 0:07:03]} 3. Nf3 {[%emt 0:02:03]} e6 {[%emt 0:02:59]} 4. Bb2 {[%emt 0:03:15]} d5 {[%emt 0:00:24]} 5. exd5 {[%emt 0:02:24]} exd5 {[%emt 0:00:59]} 6. Bb5 {[%emt 0:05:02]} Be6 {[%emt 0:00:59]} 7. Qe2 {[%emt 0:02:05]} h6 {[%emt 0:08:54]} 8. O-O {[%emt 0:09:43]} Nf6 {[%emt 0:02:24]} 9. Ne5 {[%emt 0:10:18]} Rc8 {[%emt 0:00:50]} 10. f4 {[%emt 0:04:07]} Be7 {[%emt 0:00:46]} 11. f5 {[%emt 0:08:38]} Bd7 {[%emt 0:00:10]} 12. Nxd7 {[%emt 0:01:28]} Qxd7 13. Bxf6 {[%emt 0:01:03]} gxf6 {[%emt 0:00:09]} 14. Nc3 {[%emt 0:02:01]} a6 {[%emt 0:01:09]} 15. Bxc6 {[%emt 0:00:46]} Qxc6 {[%emt 0:00:08]} 16. Rae1 {[%emt 0:01:29]} Rc7 {[%emt 0:00:06]} 17. Qf3 {[%emt 0:03:08]} Rd7 {[%emt 0:01:21]} 18. Re2 {[%emt 0:01:45]} Kd8 {[%emt 0:00:16]} 19. Rfe1 {[%emt 0:03:46]} Bd6 {[%emt 0:00:14]} 20. g3 {[%emt 0:01:49]} Rg8 {[%emt 0:01:25]} 21. Kh1 {[%emt 0:02:53]} Be5 {[%emt 0:00:37]} 22. Nd1 {[%emt 0:03:21]} d4 {[%emt 0:00:51]} 23. Qxc6 {[%emt 0:00:44]} bxc6 {[%emt 0:00:03]} 24. Nb2 {[%emt 0:06:57]} Rg5 {[%emt 0:01:04]} 25. Rf1 {[%emt 0:00:26]} Kc7 {[%emt 0:00:34]} 26. Nc4 {[%emt 0:01:30]} Rd5 {[%emt 0:00:32]} 27. Kg2 {[%emt 0:05:26]} h5 {[%emt 0:00:58]} 28. Kh3 {[%emt 0:00:19]} Bd6 {[%emt 0:00:20]} 29. Ref2 {[%emt 0:00:42]} d3 {[%emt 0:01:14]} 30. c3 {[%emt 0:00:47]} Be5 {[%emt 0:00:25]} 31. Rf3 {[%emt 0:02:09]} Rg8 {[%emt 0:00:39]} 32. Re1 {[%emt 0:01:38]} Rgd8 {[%emt 0:01:45]} 33. Kh4 {[%emt 0:02:15]} Ra8 {[%emt 0:00:44]} 34. Nb2 {[%emt 0:02:44]} Re8 {[%emt 0:01:53]} 35. Ree3 {[%emt 0:00:43]} Red8 {[%emt 0:02:57]} 36. Rxd3 {[%emt 0:00:22]} Bd6 {[%emt 0:00:11]} 37. Kh3 {[%emt 0:02:45]} Be5 {[%emt 0:00:38]} 38. Kg2 {[%emt 0:01:40]} Bd6 {[%emt 0:00:38]} 39. Nd1 {[%emt 0:02:26]} Bf8 {[%emt 0:00:27]} 40. Nf2 {[%emt 0:01:43]} Bh6 {[%emt 0:00:15]} 41. Rxd5 {[%emt 0:00:18]} cxd5 {[%emt 0:00:06]} 42. Rd3 {[%emt 0:00:27]} Kc6 {[%emt 0:00:26]} 1/2-1/2

[Event "POL-chT 2nd League Juniors 2020"]
[Site "Sypniewo"]
[Date "2020.10.24"]
[Round "2.22"]
[White "Kaczmarek, Jan"]
[Black "Leszczewicz, Karol"]
[Result "1-0"]
[ECO "D15"]
[WhiteElo "1229"]
[BlackElo "1267"]
[Annotator "NA RC"]
[PlyCount "115"]
[EventDate "2020.10.23"]
[EventType "team-tourn"]
[EventCountry "POL"]
[SourceTitle "playchess.com"]
[Source "ChessBase"]
[SourceQuality "1"]
[TimeControl "5400+30"]

1. d4 {[%emt 0:00:00]} Nf6 {[%emt 0:00:00]} 2. c4 {[%emt 0:00:00]} c6 {[%emt 0:00:35]} 3. Nf3 {[%emt 0:00:33]} d5 {[%emt 0:00:31]} 4. Nc3 {[%emt 0:00:23]} Bf5 {[%emt 0:03:00]} 5. cxd5 {[%emt 0:00:31]} cxd5 {[%emt 0:00:21]} 6. Qb3 {[%emt 0:00:10]} e6 {[%emt 0:20:24]} 7. Qxb7 {[%emt 0:00:52]} Nbd7 {[%emt 0:00:54]} 8. Bf4 {[%emt 0:03:59]} Be7 {[%emt 0:03:48]} 9. e3 {[%emt 0:05:41]} O-O {[%emt 0:04:00]} 10. Nh4 {[%emt 0:02:52]} Bg6 {[%emt 0:04:27]} 11. Nxg6 {[%emt 0:00:02]} hxg6 {[%emt 0:00:20]} 12. Bb5 {[%emt 0:02:24]} Nb6 {[%emt 0:09:10]} 13. Bc7 {[%emt 0:10:05]} Qc8 {[%emt 0:01:55]} 14. Bc6 {[%emt 0:02:36]} Qxb7 {[%emt 0:03:57]} 15. Bxb7 {[%emt 0:00:03]} Rae8 {[%emt 0:00:14]} 16. Bxb6 {[%emt 0:01:00]} axb6 {[%emt 0:00:05]} 17. O-O {[%emt 0:00:44]} Rb8 {[%emt 0:04:51]} 18. Ba6 {[%emt 0:00:20]} Ra8 {[%emt 0:00:49]} 19. Bd3 {[%emt 0:01:38]} Rac8 {[%emt 0:01:09]} 20. Rfc1 {[%emt 0:00:46]} Bb4 {[%emt 0:06:03]} 21. Na4 {[%emt 0:02:39]} Ba5 {[%emt 0:08:23]} 22. a3 {[%emt 0:01:31]} Rb8 {[%emt 0:02:29]} 23. Bb5 {[%emt 0:01:09]} Bd2 {[%emt 0:02:40]} 24. Rd1 {[%emt 0:01:58]} Ne4 {[%emt 0:00:15]} 25. Bd3 {[%emt 0:07:14]} b5 {[%emt 0:00:40]} 26. Nc5 {[%emt 0:00:58]} Nxc5 {[%emt 0:00:16]} 27. dxc5 {[%emt 0:00:02]} Ba5 {[%emt 0:00:13]} 28. b4 {[%emt 0:00:14]} Bc7 {[%emt 0:00:41]} 29. a4 {[%emt 0:01:40]} bxa4 {[%emt 0:00:10]} 30. Rxa4 {[%emt 0:00:05]} Rfc8 {[%emt 0:06:08]} 31. Rc1 {[%emt 0:02:02]} Bb6 {[%emt 0:03:19]} 32. Rc2 {[%emt 0:06:13]} Bd8 {[%emt 0:06:00]} 33. b5 {[%emt 0:01:11]} Kf8 {[%emt 0:00:30]} 34. Ra7 {[%emt 0:06:27]} e5 {[%emt 0:00:42]} 35. c6 {[%emt 0:02:45]} e4 {[%emt 0:00:36]} 36. Be2 {[%emt 0:01:28]} Rc7 {[%emt 0:01:15]} 37. Ra6 {[%emt 0:09:04]} Rcc8 {[%emt 0:00:09]} 38. Rd2 {[%emt 0:00:44]} Ke7 {[%emt 0:03:23]} 39. Rxd5 {[%emt 0:00:28]} Bc7 {[%emt 0:00:09]} 40. Rd7+ {[%emt 0:01:06]} Kf8 {[%emt 0:00:35]} 41. Ra7 {[%emt 0:01:04]} Be5 42. c7 {[%emt 0:01:26]} Bxc7 {[%emt 0:01:51]} 43. Rdxc7 {[%emt 0:00:19]} Rd8 {[%emt 0:00:10]} 44. Rxf7+ {[%emt 0:02:04]} Kg8 {[%emt 0:00:14]} 45. Rxg7+ {[%emt 0:00:05]} Kf8 {[%emt 0:00:24]} 46. g3 {[%emt 0:03:40]} Rb6 {[%emt 0:00:23]} 47. Rgf7+ {[%emt 0:00:19]} Kg8 {[%emt 0:00:11]} 48. Bc4 {[%emt 0:00:17]} Rbd6 {[%emt 0:01:19]} 49. Rfd7+ {[%emt 0:01:48]} Kf8 {[%emt 0:00:10]} 50. Rxd8+ {[%emt 0:00:24]} Rxd8 {[%emt 0:00:02]} 51. b6 {[%emt 0:00:11]} Rb8 {[%emt 0:00:11]} 52. b7 {[%emt 0:00:31]} Ke7 {[%emt 0:00:05]} 53. Bd5 {[%emt 0:00:04]} Kd7 {[%emt 0:00:16]} 54. Ra8 {[%emt 0:00:20]} Kc7 {[%emt 0:00:01]} 55. Rxb8 {[%emt 0:00:11]} Kxb8 {[%emt 0:00:09]} 56. Bxe4 {[%emt 0:00:04]} g5 {[%emt 0:00:07]} 57. f4 {[%emt 0:00:14]} gxf4 {[%emt 0:00:05]} 58. exf4 {[%emt 0:00:10]} 1-0

[Event "POL-chT 2nd League Juniors 2020"]
[Site "Sypniewo"]
[Date "2020.10.24"]
[Round "2.23"]
[White "Tarka, Aleksandra"]
[Black "Niemier, Martyna"]
[Result "1/2-1/2"]
[ECO "C00"]
[WhiteElo "1676"]
[BlackElo "1235"]
[Annotator "NA RC"]
[PlyCount "62"]
[EventDate "2020.10.23"]
[EventType "team-tourn"]
[EventCountry "POL"]
[SourceTitle "playchess.com"]
[Source "ChessBase"]
[SourceQuality "1"]
[TimeControl "5400+30"]

1. e4 {[%emt 0:00:00]} e6 {[%emt 0:00:00]} 2. d4 {[%emt 0:00:00]} d5 {[%emt 0:00:00]} 3. Bd3 {[%emt 0:00:00]} c5 {[%emt 0:10:10]} 4. exd5 {[%emt 0:00:21]} Qxd5 {[%emt 0:02:58]} 5. Nc3 {[%emt 0:03:35]} Qd8 {[%emt 0:03:11]} 6. Nf3 {[%emt 0:00:39]} Nf6 {[%emt 0:02:16]} 7. Be3 {[%emt 0:15:05]} cxd4 {[%emt 0:07:50]} 8. Bxd4 {[%emt 0:10:15]} Be7 {[%emt 0:02:51]} 9. O-O {[%emt 0:10:21]} O-O {[%emt 0:00:26]} 10. Qe2 {[%emt 0:04:16]} Nc6 {[%emt 0:05:22]} 11. Rfd1 {[%emt 0:11:10]} Nxd4 {[%emt 0:07:19]} 12. Nxd4 {[%emt 0:00:07]} Qb6 {[%emt 0:01:44]} 13. Rab1 {[%emt 0:07:22]} Bd7 {[%emt 0:02:54]} 14. Nf3 {[%emt 0:03:23]} Bc6 {[%emt 0:02:47]} 15. Ne5 {[%emt 0:02:02]} Rad8 {[%emt 0:07:12]} 16. a3 {[%emt 0:06:04]} Qc5 {[%emt 0:03:10]} 17. Nxc6 {[%emt 0:13:14]} Qxc6 {[%emt 0:01:29]} 18. Ne4 {[%emt 0:00:57]} h6 {[%emt 0:11:38]} 19. c3 {[%emt 0:06:10]} a6 {[%emt 0:03:17]} 20. Nxf6+ {[%emt 0:01:05]} Bxf6 {[%emt 0:00:12]} 21. Qe4 {[%emt 0:01:06]} Qxe4 {[%emt 0:00:06]} 22. Bxe4 {[%emt 0:00:03]} b6 {[%emt 0:01:20]} 23. Kf1 {[%emt 0:01:00]} a5 {[%emt 0:03:41]} 24. Ke2 {[%emt 0:00:53]} Bg5 {[%emt 0:01:42]} 25. Bc6 {[%emt 0:01:52]} f5 {[%emt 0:06:11]} 26. Rxd8 {[%emt 0:00:57]} Rxd8 {[%emt 0:00:16]} 27. Rd1 {[%emt 0:00:29]} Rxd1 {[%emt 0:00:38]} 28. Kxd1 {[%emt 0:00:05]} Kf7 {[%emt 0:00:16]} 29. b4 {[%emt 0:01:20]} Bf6 {[%emt 0:04:09]} 30. Kc2 {[%emt 0:00:16]} e5 {[%emt 0:01:29]} 31. f3 {[%emt 0:00:45]} g5 {[%emt 0:02:29]} 1/2-1/2

[Event "POL-chT 2nd League Juniors 2020"]
[Site "Sypniewo"]
[Date "2020.10.24"]
[Round "2.24"]
[White "Lewicka, Joanna"]
[Black "Pastuszko, Katarzyna"]
[Result "0-1"]
[ECO "C50"]
[WhiteElo "1243"]
[BlackElo "1251"]
[Annotator "NA RC"]
[PlyCount "102"]
[EventDate "2020.10.23"]
[EventType "team-tourn"]
[EventCountry "POL"]
[SourceTitle "playchess.com"]
[Source "ChessBase"]
[SourceQuality "1"]
[TimeControl "5400+30"]

1. e4 {[%emt 0:00:00]} e5 {[%emt 0:00:00]} 2. Nf3 {[%emt 0:00:00]} Nc6 {[%emt 0:00:00]} 3. Bc4 {[%emt 0:00:00]} Nf6 {[%emt 0:00:00]} 4. d3 {[%emt 0:00:10]} Bc5 {[%emt 0:00:08]} 5. O-O {[%emt 0:00:34]} d6 {[%emt 0:00:39]} 6. h3 {[%emt 0:00:10]} h6 {[%emt 0:00:49]} 7. c3 {[%emt 0:00:57]} O-O {[%emt 0:01:43]} 8. Re1 {[%emt 0:00:46]} Be6 {[%emt 0:01:41]} 9. Bb3 {[%emt 0:03:03]} Qd7 {[%emt 0:06:40]} 10. d4 {[%emt 0:03:18]} Bxb3 {[%emt 0:01:10]} 11. axb3 exd4 {[%emt 0:00:48]} 12. cxd4 {[%emt 0:04:30]} Bb4 {[%emt 0:03:05]} 13. Nc3 {[%emt 0:00:11]} Rfe8 {[%emt 0:01:25]} 14. Qe2 {[%emt 0:04:16]} Bxc3 {[%emt 0:02:31]} 15. bxc3 {[%emt 0:00:29]} Nxe4 {[%emt 0:01:40]} 16. Qd3 {[%emt 0:02:46]} Nf6 {[%emt 0:06:17]} 17. Bb2 {[%emt 0:03:32]} Nd5 {[%emt 0:06:39]} 18. c4 {[%emt 0:02:17]} Nf4 {[%emt 0:01:59]} 19. Qc3 {[%emt 0:03:08]} Ne2+ {[%emt 0:02:11]} 20. Rxe2 {[%emt 0:01:02]} Rxe2 {[%emt 0:00:43]} 21. d5 {[%emt 0:00:23]} Ne5 {[%emt 0:00:33]} 22. Nxe5 {[%emt 0:02:42]} dxe5 {[%emt 0:01:26]} 23. Bc1 {[%emt 0:09:24]} Qf5 {[%emt 0:02:09]} 24. Be3 {[%emt 0:01:37]} Rc2 {[%emt 0:02:39]} 25. Qb4 {[%emt 0:02:39]} Qc8 {[%emt 0:04:50]} 26. Rxa7 {[%emt 0:04:17]} Rxa7 {[%emt 0:00:38]} 27. Bxa7 {[%emt 0:00:05]} b6 {[%emt 0:04:21]} 28. c5 {[%emt 0:00:34]} Rxc5 {[%emt 0:01:14]} 29. d6 {[%emt 0:02:09]} Ra5 {[%emt 0:02:12]} 30. Bxb6 {[%emt 0:04:39]} cxb6 {[%emt 0:01:45]} 31. Qxb6 {[%emt 0:00:09]} Qc1+ {[%emt 0:00:16]} 32. Kh2 {[%emt 0:00:07]} Qd2 {[%emt 0:01:14]} 33. d7 {[%emt 0:04:17]} Rd5 {[%emt 0:00:47]} 34. Qb8+ {[%emt 0:00:40]} Kh7 {[%emt 0:00:14]} 35. d8=Q {[%emt 0:00:23]} Rxd8 {[%emt 0:00:23]} 36. Qxe5 {[%emt 0:00:08]} Qd6 {[%emt 0:00:37]} 37. Qxd6 {[%emt 0:01:08]} Rxd6 {[%emt 0:00:05]} 38. b4 {[%emt 0:00:10]} Rb6 {[%emt 0:00:06]} 39. b5 {[%emt 0:00:03]} Rxb5 {[%emt 0:00:04]} 40. Kg1 {[%emt 0:00:09]} Kg6 {[%emt 0:00:13]} 41. Kh2 {[%emt 0:00:13]} Kg5 {[%emt 0:00:18]} 42. Kg3 {[%emt 0:00:06]} Rb3+ {[%emt 0:00:06]} 43. Kh2 {[%emt 0:00:34]} Kf4 {[%emt 0:00:13]} 44. Kg1 {[%emt 0:00:11]} g5 {[%emt 0:00:24]} 45. g3+ {[%emt 0:00:37]} Kf3 {[%emt 0:00:20]} 46. h4 {[%emt 0:00:56]} gxh4 {[%emt 0:00:16]} 47. gxh4 {[%emt 0:00:08]} Rb2 {[%emt 0:00:14]} 48. h5 {[%emt 0:00:05]} Rxf2 {[%emt 0:00:16]} 49. Kh1 {[%emt 0:00:05]} Kg3 {[%emt 0:00:28]} 50. Kg1 {[%emt 0:00:08]} f6 {[%emt 0:00:04]} 51. Kh1 {[%emt 0:00:18]} Rf1# {[%emt 0:00:03]} 0-1

[Event "POL-chT 2nd League Juniors 2020"]
[Site "Sypniewo"]
[Date "2020.10.24"]
[Round "3.1"]
[White "Ursnik, Patryk"]
[Black "Lewandowski, Wiktor"]
[Result "1/2-1/2"]
[ECO "B22"]
[WhiteElo "1645"]
[BlackElo "1756"]
[Annotator "NA"]
[PlyCount "48"]
[EventDate "2020.10.23"]
[EventType "team-tourn"]
[EventCountry "POL"]
[SourceTitle "playchess.com"]
[Source "ChessBase"]
[SourceQuality "1"]
[TimeControl "5400+30"]

1. e4 c5 2. c3 g6 3. d4 cxd4 4. cxd4 d5 5. e5 Nc6 6. h3 Nh6 7. Nf3 Bg7 8. Be2 O-O 9. Nc3 f6 10. exf6 exf6 11. O-O Be6 12. Re1 Re8 13. Bf4 g5 14. Bg3 Nf5 15. Bh2 Rc8 16. Bb5 a6 17. Ba4 Bf7 18. Rxe8+ Qxe8 19. Bc2 Nfe7 20. Na4 Qd8 21. Nc5 Qb6 22. Na4 Qd8 23. Nc5 Qb6 24. Na4 Qd8 1/2-1/2

[Event "POL-chT 2nd League Juniors 2020"]
[Site "Sypniewo"]
[Date "2020.10.24"]
[Round "3.3"]
[White "Cieply, Krzysztof"]
[Black "Komendecki, Antoni"]
[Result "0-1"]
[ECO "B27"]
[WhiteElo "1573"]
[BlackElo "1801"]
[Annotator "NA"]
[PlyCount "80"]
[EventDate "2020.10.23"]
[EventType "team-tourn"]
[EventCountry "POL"]
[SourceTitle "playchess.com"]
[Source "ChessBase"]
[SourceQuality "1"]
[TimeControl "5400+30"]

{[%evp 8,66,55,12,57,32767,32767,32767,32767,32767,32767,32767,32767,32767,-100,-89,-98,-100,32767,32767,32767,32767,-95,-102,-87,-138,-144,32767,-129,-135,-146,-146,-148,-162,-147,-175,-161,32767,-164,-182,32767,-154,-153,-145,-146,-158,-150,-161,-166,-185,-169,-172,-140,-171,-138,32767,-174,-174,-131,-139,-137]} 1. e4 {[%emt 0:00:00]} c5 {[%emt 0:00:00]} 2. Nf3 {[%emt 0:00:00]} g6 {[%emt 0:00:00]} 3. d4 {[%emt 0:00:00]} cxd4 {[%emt 0:00:00]} 4. Nxd4 {[%emt 0:00:00]} Bg7 {[%emt 0:00:00]} 5. Nc3 {[%emt 0:00:10]} Nc6 {[%emt 0:00:05]} 6. Be3 {[%emt 0:00:12]} Nf6 {[%emt 0:00:12]} 7. f3 {[%emt 0:00:07]} O-O {[%emt 0:00:12]} 8. Bc4 {[%emt 0:00:43]} Qb6 {[%emt 0:03:27]} 9. Qd2 {[%emt 0:02:52]} Nxe4 {[%emt 0:01:14]} 10. fxe4 {[%emt 0:00:35]} Bxd4 {[%emt 0:01:10]} 11. Bxd4 {[%emt 0:00:22]} Qxd4 {[%emt 0:00:30]} 12. Qxd4 {[%emt 0:00:34]} Nxd4 {[%emt 0:00:21]} 13. O-O-O {[%emt 0:00:11]} Nc6 {[%emt 0:01:03]} 14. Nd5 {[%emt 0:02:15]} Rb8 {[%emt 0:04:59] B35: Sicilian: Accelerated Dragon with 5 Nc3: main line.} 15. Bb5 {[%emt 0:01:53]} Re8 {[%emt 0:03:27] [#]} 16. Bc4 $146 {[%emt 0:00:30]} ({Predecessor:} 16. Nc7 Rd8 17. Nd5 Kf8 18. h4 a6 19. Ba4 b5 20. Bb3 d6 21. Rdf1 Be6 22. h5 {0-1 (38) Mitra,A (1848)-Sundin,E (2166) Uppsala 2018}) 16... d6 {[%emt 0:19:55]} 17. h3 {[%emt 0:02:34]} Be6 {[%emt 0:04:35]} 18. Bb3 {[%emt 0:00:24]} Bxd5 {[%emt 0:01:20]} 19. Bxd5 {[%emt 0:00:55]} Ne5 {[%emt 0:00:17]} 20. Rhf1 {[%emt 0:00:23]} b5 {[%emt 0:02:19]} 21. Rf2 {[%emt 0:02:05]} Rec8 {[%emt 0:00:32]} 22. Kb1 {[%emt 0:00:23]} a5 {[%emt 0:00:31]} 23. a3 {[%emt 0:00:22]} a4 {[%emt 0:02:14]} 24. Rd4 {[%emt 0:01:57]} Rc5 {[%emt 0:12:21]} 25. c3 {[%emt 0:01:00]} Kg7 {[%emt 0:04:42]} 26. Rd1 {[%emt 0:01:27]} Rbc8 {[%emt 0:05:14]} 27. Rfd2 {[%emt 0:02:19]} h5 {[%emt 0:05:27]} 28. Rf2 {[%emt 0:00:33]} Rf8 {[%emt 0:06:07]} 29. Kc2 {[%emt 0:00:49]} f6 {[%emt 0:03:37]} 30. Be6 {[%emt 0:00:24]} Nc6 {[%emt 0:04:58]} 31. Kb1 {[%emt 0:01:20]} Re5 {[%emt 0:00:43]} 32. Bd5 $19 {[%emt 0:00:37]} Nd8 {[%emt 0:01:28]} 33. Rd4 {[%emt 0:02:46]} Ne6 {[%emt 0:02:34]} 34. Rdd2 {[%emt 0:01:34]} Nc5 {[%emt 0:00:32]} 35. Rd4 {[%emt 0:01:19]} Rc8 {[%emt 0:01:18]} 36. Rf3 {[%emt 0:02:33]} e6 {[%emt 0:00:32]} 37. Ba2 {[%emt 0:00:15]} Nxe4 {[%emt 0:00:06]} 38. Rdd3 {[%emt 0:01:27]} d5 {[%emt 0:01:42]} 39. Rd1 {[%emt 0:00:38]} Rg5 {[%emt 0:00:35]} 40. Rfd3 {[%emt 0:02:19]} Nf2 {[%emt 0:00:18]} 0-1